bitfinex-derivatives/quotes_BNBF0:USTF0_20250807
["timestamp","ask_amount","ask_price","bid_price","bid_amount"]
[1754593689436,0.868,778.21,777.64,0.85773545]
[1754593689630,0.85848119,778.2,777.64,0.85773545]
[1754593689828,0.85848119,778.19,777.64,0.85773545]
[1754593690031,0.85848119,778.18,777.64,0.85773545]
[1754593690231,0.85848119,778.17,777.64,0.85773545]
[1754593690435,0.85848119,778.16,777.64,0.85773545]
[1754593690631,0.85848119,778.15,777.64,0.85773545]
[1754593690835,0.85848119,778.14,777.64,0.85773545]
[1754593691131,0.85848119,778.13,777.64,0.85773545]
[1754593691336,0.85848119,778.12,777.64,0.85773545]
[1754593691631,0.85903915,778.11,777.69,0.85773545]
[1754593691835,0.85903915,778.1,777.69,0.85773545]
[1754593692132,0.85903915,778.09,777.69,0.85773545]
[1754593692431,0.85903915,778.08,777.7,0.85773545]
[1754593692635,0.85903915,778.07,777.71,0.85773545]
[1754593692835,0.85903915,778.06,777.71,0.85773545]
[1754593693033,0.85903915,778.05,777.71,0.85773545]
[1754593693229,0.85903915,778.04,777.71,0.85773545]
[1754593693431,0.85903915,778.03,777.72,0.85773545]
[1754593693631,0.85903915,778.02,777.76,0.85773545]
[1754593693832,0.85903915,778.01,777.76,0.85773545]
[1754593694030,0.85903915,778.0,777.78,0.85773545]
[1754593694231,0.85903915,777.99,777.78,0.85773545]
[1754593694438,0.85903915,777.98,777.77,0.85773545]
[1754593694634,0.85903915,777.97,777.79,0.85773545]
[1754593694937,0.85903915,777.96,777.79,0.85773545]
[1754593695135,0.85903915,777.95,777.79,0.85773545]
[1754593695339,0.85903915,777.94,777.79,0.85773545]
[1754593695539,0.85903915,777.93,777.79,0.85773545]
[1754593695739,0.85903915,777.92,777.79,0.85773545]
[1754593695934,0.85903915,777.91,777.79,0.85773545]
[1754593696236,0.85903915,777.9,777.79,0.85773545]
[1754593696438,0.85903915,777.89,777.79,0.85773545]
[1754593696639,0.85903915,777.88,777.79,0.85773545]
[1754593696841,0.85903915,777.87,777.79,0.85773545]
[1754593697043,0.85903915,777.86,777.79,0.85773545]
[1754593697337,0.85903915,777.85,777.79,0.85773545]
[1754593697544,0.85903915,777.84,777.78,0.85773545]
[1754593697743,0.99,777.97,777.78,0.85773545]
[1754593698043,0.8590195,777.96,777.79,0.85773545]
[1754593698341,0.99,777.97,777.34,0.22363098]
[1754593698342,0.8590195,777.95,777.8,0.85773545]
[1754593698542,0.8590195,777.94,777.8,0.85773545]
[1754593698739,0.8590195,777.93,777.76,0.85773545]
[1754593698943,0.8590195,777.92,777.76,0.85773545]
[1754593699144,0.8590195,777.91,777.76,0.85773545]
[1754593699345,0.8590195,777.9,777.76,0.85773545]
[1754593699542,0.8590195,777.89,777.76,0.85773545]
[1754593699741,0.8590195,777.88,777.76,0.85773545]
[1754593699945,0.8590195,777.87,777.76,0.85773545]
[1754593700145,0.8590195,777.86,777.76,0.85773545]
[1754593700446,0.99,777.97,777.75,0.85773545]
[1754593700643,0.85901521,777.96,777.75,0.85773545]
[1754593700846,0.85901521,777.95,777.75,0.85773545]
[1754593701043,0.85901521,777.94,777.75,0.85773545]
[1754593701247,0.85901521,777.93,777.75,0.85773545]
[1754593701445,0.85901521,777.92,777.75,0.85773545]
[1754593701648,0.85901521,777.91,777.75,0.85773545]
[1754593701848,0.85901521,777.9,777.75,0.85773545]
[1754593702048,0.85901521,777.89,777.75,0.85773545]
[1754593702346,0.85901521,777.88,777.75,0.85773545]
[1754593702548,0.85901521,777.87,777.75,0.85773545]
[1754593702747,0.99,777.97,777.75,0.85773545]
[1754593702748,0.85901521,777.86,777.75,0.85773545]
[1754593702946,0.85901521,777.85,777.75,0.85773545]
[1754593703246,0.99,777.97,777.75,0.85773545]
[1754593703446,0.85900922,777.96,777.75,0.85773545]
[1754593703649,0.85900922,777.95,777.75,0.85773545]
[1754593703850,0.85900922,777.94,777.75,0.85773545]
[1754593704049,0.85900922,777.93,777.75,0.85773545]
[1754593704350,0.85900922,777.92,777.75,0.85773545]
[1754593704546,0.85900922,777.91,777.75,0.85773545]
[1754593704747,0.85900922,777.9,777.75,0.85773545]
[1754593704951,0.85900922,777.89,777.75,0.85773545]
[1754593705150,0.85900922,777.88,777.75,0.85773545]
[1754593705346,0.85900922,777.87,777.75,0.85773545]
[1754593705551,0.85900922,777.86,777.75,0.85773545]
[1754593705751,0.85900922,777.85,777.75,0.85773545]
[1754593706051,0.99,777.97,777.75,0.85773545]
[1754593706252,0.85900242,777.96,777.75,0.85773545]
[1754593706448,0.85900242,777.95,777.75,0.85773545]
[1754593706652,0.85900242,777.94,777.75,0.85773545]
[1754593706850,0.85900242,777.93,777.75,0.85773545]
[1754593707051,0.85900242,777.92,777.75,0.85773545]
[1754593707247,0.85900242,777.91,777.75,0.85773545]
[1754593707450,0.85900242,777.9,777.74,0.85773545]
[1754593707649,0.85900242,777.89,777.74,0.85773545]
[1754593707853,0.85900242,777.88,777.75,0.85773545]
[1754593708054,0.85900242,777.87,777.75,0.85773545]
[1754593708250,0.85900242,777.86,777.75,0.85773545]
[1754593708460,0.85900242,777.85,777.82,0.85773545]
[1754593708652,0.85900242,777.84,777.82,0.85773545]
[1754593708851,0.85900242,777.83,777.7,1.1493026]
[1754593709055,0.85900242,777.82,777.7,1.1493026]
[1754593709255,0.85900242,777.81,777.7,1.1493026]
[1754593709552,0.85899836,777.8,777.7,1.1493026]
[1754593709755,0.99,777.97,777.7,1.1493026]
[1754593710056,0.85899813,777.96,777.85,0.86008499]
[1754593710256,0.85899813,777.95,777.85,0.86008499]
[1754593710458,0.85899813,777.94,777.84,0.86008499]
[1754593710658,0.85899813,777.93,777.86,0.86008499]
[1754593710956,0.85899813,777.92,777.86,0.86008499]
[1754593711158,0.85899813,777.91,777.87,0.86008499]
[1754593711358,0.85899813,777.9,777.86,0.86008499]
[1754593711655,0.85899813,777.89,777.86,0.86008499]
[1754593711854,0.85899813,777.88,777.86,0.86008499]
[1754593712059,0.85899813,777.87,777.86,0.86008499]
[1754593715157,0.99,777.97,777.86,0.86008499]
[1754593716361,0.99,777.97,777.85,0.86008499]
[1754593716656,0.85872232,777.96,777.85,0.86008499]
[1754593716861,0.85872232,777.95,777.85,0.86008499]
[1754593717061,0.85872232,777.94,777.85,0.86008499]
[1754593717358,0.85872232,777.93,777.85,0.86008499]
[1754593717662,0.85872232,777.92,777.85,0.86008499]
[1754593717961,0.85872232,777.91,777.85,0.86008499]
[1754593718156,0.85872232,777.9,777.85,0.86008499]
[1754593718360,0.85872232,777.89,777.85,0.86008499]
[1754593718557,0.85872232,777.88,777.85,0.86008499]
[1754593718760,0.85871449,777.87,777.85,0.86008499]
[1754593718958,0.85871449,777.86,777.85,0.86008499]
[1754593719362,0.85870834,777.86,777.85,0.86008499]
[1754593721767,0.86341725,778.45,777.85,0.86008499]
[1754593721962,0.85869721,778.44,777.85,0.86008499]
[1754593722167,0.85869721,778.43,777.84,0.86008499]
[1754593722369,0.85869721,778.42,777.84,0.86008499]
[1754593722664,0.85869721,778.41,777.84,0.86008499]
[1754593722867,0.85869721,778.4,777.84,0.86008499]
[1754593723068,0.85869721,778.39,777.84,0.86008499]
[1754593723268,0.85869721,778.38,777.84,0.86008499]
[1754593723468,0.85869721,778.37,777.84,0.86008499]
[1754593723668,0.85869721,778.36,777.84,0.86008499]
[1754593723870,0.85869721,778.35,777.84,0.86008499]
[1754593724066,0.85869721,778.34,777.84,0.86008499]
[1754593724367,0.85869721,778.33,777.84,0.86008499]
[1754593724565,0.86341725,778.46,777.83,0.86008499]
[1754593724566,0.85869721,778.32,777.83,0.86008499]
[1754593724766,0.85869721,778.31,777.83,0.86008499]
[1754593724967,0.85869721,778.3,777.83,0.86008499]
[1754593725168,0.85869721,778.29,777.83,0.86008499]
[1754593725481,0.85869721,778.28,777.83,0.86008499]
[1754593725667,0.85869721,778.27,777.83,0.86008499]
[1754593725869,0.85869721,778.26,777.83,0.86008499]
[1754593726172,0.85869721,778.25,777.83,0.86008499]
[1754593726372,0.85869721,778.24,777.83,0.86008499]
[1754593726674,0.85869721,778.23,777.83,0.86008499]
[1754593726874,0.85869721,778.22,777.83,0.86008499]
[1754593727179,0.85869721,778.21,777.83,0.86008499]
[1754593727368,0.85869721,778.2,777.83,0.86008499]
[1754593727673,0.85869721,778.19,777.83,0.86008499]
[1754593727875,0.86341725,778.48,777.83,0.86008499]
[1754593728174,1.72209821,778.47,777.83,0.86008499]
[1754593728374,0.85868096,778.46,777.83,0.86008499]
[1754593728577,0.85868096,778.45,777.83,0.86008499]
[1754593728773,0.85868096,778.44,777.83,0.86008499]
[1754593728971,0.85868096,778.43,777.83,0.86008499]
[1754593729170,0.85868096,778.42,777.83,0.86008499]
[1754593729470,0.85868096,778.41,777.83,0.86008499]
[1754593729668,0.85868096,778.4,777.83,0.86008499]
[1754593729881,0.85868096,778.39,777.84,0.86008499]
[1754593730071,0.85868096,778.38,777.84,0.86008499]
[1754593730272,0.85868096,778.37,777.84,0.86008499]
[1754593730473,0.85868096,778.36,777.84,0.86008499]
[1754593730675,0.85868096,778.35,777.84,0.86008499]
[1754593730872,0.85868096,778.34,777.84,0.86008499]
[1754593731076,0.85868096,778.33,777.84,0.86008499]
[1754593731272,0.85868096,778.32,777.84,0.86008499]
[1754593731476,0.85868096,778.31,777.84,0.86008499]
[1754593731772,0.85868096,778.3,777.84,0.86008499]
[1754593731973,0.85868096,778.29,777.85,0.86008499]
[1754593732273,0.85868096,778.28,777.85,0.86008499]
[1754593732473,0.85868096,778.27,777.85,0.86008499]
[1754593732677,0.85868096,778.26,777.85,0.86008499]
[1754593732873,0.85868096,778.25,777.85,0.86008499]
[1754593733072,0.85868096,778.24,777.85,0.86008499]
[1754593733273,0.85868096,778.23,777.85,0.86008499]
[1754593733476,0.85868096,778.22,777.85,0.86008499]
[1754593733775,0.85868096,778.21,777.85,0.86008499]
[1754593733975,0.85868096,778.2,777.85,0.86008499]
[1754593734177,0.85868096,778.19,777.85,0.86008499]
[1754593734473,0.85868096,778.18,777.85,0.86008499]
[1754593734680,0.85868096,778.17,777.85,0.86008499]
[1754593734880,0.85868096,778.16,777.85,0.86008499]
[1754593735174,0.85868096,778.15,777.85,0.86008499]
[1754593735377,0.85868096,778.14,777.86,0.86008499]
[1754593735577,0.85868096,778.13,777.86,0.86008499]
[1754593735778,0.85868096,778.12,777.87,0.86008499]
[1754593735986,0.85868096,778.11,777.85,0.86008499]
[1754593736275,0.85868096,778.1,777.86,0.86008499]
[1754593736481,0.85868096,778.09,777.86,0.86008499]
[1754593736679,0.85868096,778.08,777.86,0.86008499]
[1754593736876,0.85868096,778.07,777.87,0.86008499]
[1754593737079,0.86341725,778.47,777.87,0.86008499]
[1754593737375,0.85870182,778.46,777.87,0.86008499]
[1754593737578,0.85870182,778.45,777.86,0.86008499]
[1754593737779,0.85870182,778.44,777.86,0.86008499]
[1754593737986,0.85870182,778.43,777.86,0.86008499]
[1754593738190,0.85870182,778.42,777.87,0.86008499]
[1754593738383,0.85870182,778.41,777.87,0.86008499]
[1754593738681,0.85870182,778.4,777.87,0.86008499]
[1754593738977,0.85870182,778.39,777.87,0.86008499]
[1754593739181,0.85870182,778.38,777.87,0.86008499]
[1754593739381,0.85870182,778.37,777.87,0.86008499]
[1754593739679,0.85870182,778.36,777.87,0.86008499]
[1754593739982,0.85870182,778.35,777.88,0.86008499]
[1754593740176,0.85870182,778.34,777.88,0.86008499]
[1754593740377,0.85870182,778.33,777.88,0.86008499]
[1754593740683,0.85870182,778.32,777.88,0.86008499]
[1754593740880,0.85870182,778.31,777.88,0.86008499]
[1754593741078,0.85870182,778.3,777.89,0.86008499]
[1754593741380,0.85870182,778.29,777.89,0.86008499]
[1754593741578,0.85870182,778.28,777.89,0.86008499]
[1754593741782,0.85870182,778.27,777.89,0.86008499]
[1754593741977,0.85870182,778.26,777.89,0.86008499]
[1754593742181,0.85870182,778.25,777.89,0.86008499]
[1754593742479,0.85870182,778.24,777.89,0.86008499]
[1754593742682,0.85870182,778.23,777.89,0.86008499]
[1754593742882,0.85870182,778.22,777.89,0.86008499]
[1754593743079,0.85870182,778.21,777.89,0.86008499]
[1754593743382,0.85870182,778.2,777.89,0.86008499]
[1754593743582,0.85870182,778.19,777.89,0.86008499]
[1754593743782,0.85870182,778.18,777.89,0.86008499]
[1754593743981,0.85870182,778.17,777.89,0.86008499]
[1754593744185,0.85870182,778.16,777.89,0.86008499]
[1754593744379,0.85870182,778.15,777.89,0.86008499]
[1754593744682,0.85870182,778.14,777.89,0.86008499]
[1754593744879,0.85870182,778.13,777.89,0.86008499]
[1754593745080,0.85867961,778.12,777.89,0.86008499]
[1754593745384,0.85867961,778.11,777.9,0.86008499]
[1754593745579,0.85867961,778.1,777.9,0.86008499]
[1754593745879,0.85867961,778.09,777.9,0.86008499]
[1754593746083,0.85867961,778.08,777.9,0.86008499]
[1754593746283,0.85867961,778.07,777.9,0.86008499]
[1754593746482,0.85867961,778.06,777.9,0.86008499]
[1754593746681,0.86341725,778.43,777.9,0.86008499]
[1754593746682,0.85867961,778.05,777.9,0.86008499]
[1754593746980,0.85867961,778.04,777.9,0.86008499]
[1754593747182,0.85867961,778.03,777.91,0.86008499]
[1754593747382,0.85867961,778.02,777.91,0.86008499]
[1754593747582,0.85867961,778.01,777.91,0.86008499]
[1754593747885,1.1544778,778.55,777.91,0.86008499]
[1754593747886,0.85867961,778.0,777.91,0.86008499]
[1754593748081,0.86341725,778.42,777.91,0.86008499]
[1754593748285,0.85770598,778.41,777.92,0.86008499]
[1754593748485,0.85770598,778.4,777.92,0.86008499]
[1754593748684,0.85770598,778.39,777.92,0.86008499]
[1754593748885,0.85770598,778.38,777.92,0.86008499]
[1754593749086,0.85770598,778.37,777.92,0.86008499]
[1754593749384,0.85770598,778.36,777.92,0.86008499]
[1754593749585,0.85770598,778.35,777.92,0.86008499]
[1754593749785,0.85770598,778.34,777.92,0.86008499]
[1754593749985,0.85770598,778.33,777.92,0.86008499]
[1754593750183,0.85770598,778.33,777.34,0.22363098]
[1754593750184,0.85770598,778.32,777.91,0.86008499]
[1754593750386,0.85770598,778.31,777.91,0.86008499]
[1754593750686,0.85770598,778.3,777.91,0.86008499]
[1754593750883,0.85770598,778.29,777.91,0.86008499]
[1754593751082,0.85770598,778.28,777.91,0.86008499]
[1754593751282,0.85770598,778.27,777.92,0.86008499]
[1754593751485,0.85770598,778.26,777.92,0.86008499]
[1754593751682,0.85770598,778.25,777.92,0.86008499]
[1754593751883,0.85770598,778.24,777.92,0.86008499]
[1754593752082,0.85770598,778.23,777.92,0.86008499]
[1754593752281,0.85770598,778.22,777.92,0.86008499]
[1754593752483,0.85770598,778.21,777.92,0.86008499]
[1754593752689,0.85770598,778.2,777.92,0.86008499]
[1754593752988,0.85770598,778.19,777.92,0.86008499]
[1754593753184,0.85770598,778.18,777.93,0.86008499]
[1754593753388,0.85770598,778.17,777.94,0.86008499]
[1754593753589,0.85770598,778.16,777.94,0.86008499]
[1754593753886,0.86341725,778.43,777.94,0.86008499]
[1754593754187,0.85676857,778.42,777.94,0.86008499]
[1754593754385,0.85676857,778.41,777.94,0.86008499]
[1754593754685,0.85676857,778.4,777.94,0.86008499]
[1754593754885,0.85676857,778.39,777.94,0.86008499]
[1754593755090,0.85676857,778.38,777.94,0.86008499]
[1754593755390,0.85676857,778.37,777.94,0.86008499]
[1754593755590,0.85676857,778.36,777.94,0.86008499]
[1754593755789,0.85676857,778.36,777.34,0.22363098]
[1754593755790,0.85676857,778.35,777.93,0.86008499]
[1754593755990,0.85676857,778.34,777.93,0.86008499]
[1754593756192,0.85676857,778.33,777.93,0.86008499]
[1754593756387,0.85676857,778.32,777.93,0.86008499]
[1754593756590,0.85676857,778.31,777.93,0.86008499]
[1754593756891,0.85676857,778.3,777.93,0.86008499]
[1754593757092,0.85634302,778.29,777.93,0.86008499]
[1754593757392,0.85634302,778.28,777.94,0.86008499]
[1754593757591,0.85634302,778.27,777.94,0.86008499]
[1754593757789,0.85634302,778.26,777.94,0.86008499]
[1754593757990,0.85634302,778.25,777.94,0.86008499]
[1754593758287,0.85634302,778.24,777.94,0.86008499]
[1754593758486,0.85634302,778.23,777.95,0.86008499]
[1754593758691,0.85634302,778.22,777.95,0.86008499]
[1754593758893,0.86341725,778.41,777.95,0.86008499]
[1754593759193,0.855889,778.4,777.94,0.86008499]
[1754593759390,0.855889,778.39,777.94,0.86008499]
[1754593759690,0.855889,778.38,777.93,0.86008499]
[1754593759893,0.855889,778.37,777.94,0.86008499]
[1754593760087,0.855889,778.36,777.94,0.86008499]
[1754593760287,0.855889,778.35,777.95,0.86008499]
[1754593760494,0.855889,778.34,777.95,0.86008499]
[1754593760702,0.855889,778.33,777.94,0.86008499]
[1754593760899,0.855889,778.32,777.94,0.86008499]
[1754593761103,0.855889,778.31,777.92,0.86008499]
[1754593761309,0.855889,778.3,777.92,0.86008499]
[1754593761502,0.855889,778.29,777.92,0.86008499]
[1754593761804,0.855889,778.28,777.92,0.86008499]
[1754593762002,0.855889,778.27,777.92,0.86008499]
[1754593762198,0.855889,778.26,777.92,0.86008499]
[1754593762398,0.86341725,778.45,777.92,0.86008499]
[1754593762597,0.85523004,778.44,777.92,0.86008499]
[1754593762801,0.85523004,778.43,777.92,0.86008499]
[1754593763003,0.86341725,778.45,777.92,0.86008499]
[1754593763297,0.85522709,778.42,777.92,0.86008499]
[1754593763497,0.85522709,778.41,777.92,0.86008499]
[1754593763800,0.85522709,778.4,777.92,0.86008499]
[1754593764100,0.85522709,778.39,777.92,0.86008499]
[1754593764301,0.85522709,778.38,777.93,0.86008499]
[1754593764501,0.85522709,778.37,777.96,0.86008499]
[1754593764701,0.85522709,778.36,777.98,0.86008499]
[1754593764897,0.85522709,778.35,777.98,0.86008499]
[1754593765102,0.85522709,778.34,777.98,0.86008499]
[1754593765399,0.85522709,778.33,777.97,0.86008499]
[1754593765602,0.85522709,778.32,778.0,0.86008499]
[1754593765802,0.85522709,778.31,778.0,0.86008499]
[1754593766102,0.85522709,778.3,778.0,0.86008499]
[1754593766297,0.85522709,778.29,778.0,0.86008499]
[1754593766502,0.85522709,778.28,778.0,0.86008499]
[1754593766702,0.85522709,778.27,778.0,0.86008499]
[1754593766902,0.85522709,778.26,778.0,0.86008499]
[1754593767203,0.85522709,778.42,778.0,0.86008499]
[1754593767403,0.85479945,778.41,777.99,0.86008499]
[1754593767699,0.85479945,778.4,777.99,0.86008499]
[1754593767899,0.85479945,778.39,777.99,0.86008499]
[1754593768098,0.85479945,778.38,777.99,0.86008499]
[1754593768300,0.85479945,778.37,777.99,0.86008499]
[1754593768498,0.85479945,778.36,777.99,0.86008499]
[1754593768802,0.85479945,778.35,777.99,0.86008499]
[1754593769003,0.85479945,778.34,777.99,0.86008499]
[1754593769204,0.85479945,778.33,777.99,0.86008499]
[1754593769400,0.85479945,778.32,777.99,0.86008499]
[1754593769605,0.85479945,778.31,777.99,0.86008499]
[1754593769800,0.85479945,778.3,777.99,0.86008499]
[1754593770002,0.85479945,778.29,777.99,0.86008499]
[1754593770203,0.85479945,778.28,777.99,0.86008499]
[1754593770404,0.85479945,778.27,777.99,0.86008499]
[1754593770605,0.85479945,778.26,777.99,0.86008499]
[1754593770802,0.85451308,778.25,778.01,0.86008499]
[1754593771105,0.85451308,778.24,778.01,0.86008499]
[1754593771308,0.85522709,778.42,778.01,0.86008499]
[1754593771606,0.85446877,778.41,778.01,0.86008499]
[1754593771805,0.85446877,778.4,778.01,0.86008499]
[1754593772104,0.85446877,778.39,778.01,0.86008499]
[1754593772304,0.85446877,778.38,778.01,0.86008499]
[1754593772504,0.85446877,778.37,778.01,0.86008499]
[1754593772705,0.85446877,778.36,778.01,0.86008499]
[1754593772899,0.85446877,778.35,778.01,0.86008499]
[1754593773099,0.85446877,778.34,778.01,0.86008499]
[1754593773304,0.85446877,778.33,778.01,0.86008499]
[1754593773504,0.85446877,778.32,778.01,0.86008499]
[1754593773703,0.85446877,778.31,778.01,0.86008499]
[1754593773901,0.85522709,778.42,778.01,0.86008499]
[1754593773902,0.85446877,778.3,778.01,0.86008499]
[1754593774102,0.85446877,778.29,778.01,0.86008499]
[1754593774301,0.85446877,778.28,778.01,0.86008499]
[1754593774502,0.85446877,778.27,778.01,0.86008499]
[1754593774802,0.85446877,778.26,778.01,0.86008499]
[1754593775007,0.85446877,778.25,778.01,0.86008499]
[1754593775206,0.85446877,778.24,778.01,0.86008499]
[1754593775507,0.85446877,778.23,778.01,0.86008499]
[1754593775705,0.85522709,778.42,778.01,0.86008499]
[1754593775908,0.85433018,778.41,778.01,0.86008499]
[1754593776205,0.85433018,778.4,778.01,0.86008499]
[1754593776404,0.85433018,778.39,778.01,0.86008499]
[1754593776607,0.85433018,778.38,778.01,0.86008499]
[1754593776804,0.85433018,778.37,778.01,0.86008499]
[1754593777005,0.85429938,778.36,778.01,0.86008499]
[1754593777206,0.85429938,778.35,778.01,0.86008499]
[1754593777405,0.85429938,778.34,778.01,0.86008499]
[1754593777705,0.85429938,778.33,778.01,0.86008499]
[1754593777904,0.85429938,778.32,778.01,0.86008499]
[1754593778109,0.85429938,778.31,778.01,0.86008499]
[1754593778309,0.85429938,778.3,778.01,0.86008499]
[1754593778608,0.85429938,778.29,778.01,0.86008499]
[1754593778807,0.85429938,778.28,778.01,0.86008499]
[1754593779004,0.85429938,778.27,778.01,0.86008499]
[1754593779205,0.85429938,778.26,778.01,0.86008499]
[1754593779410,0.85522709,778.42,778.01,0.86008499]
[1754593779610,0.85424806,778.41,778.01,0.86008499]
[1754593779906,0.85424806,778.4,778.0,0.86008499]
[1754593780105,0.85424806,778.39,778.0,0.86008499]
[1754593780313,0.85424806,778.38,778.0,0.86008499]
[1754593780612,0.85424806,778.37,777.97,0.86008499]
[1754593780812,0.85424806,778.36,777.97,0.86008499]
[1754593781012,0.85413994,778.35,777.97,0.86008499]
[1754593781213,0.8540941,778.34,777.98,0.86008499]
[1754593781414,0.85522709,778.42,777.97,0.86008499]
[1754593781613,0.8540941,778.41,777.97,0.86008499]
[1754593781813,0.8540941,778.4,777.97,0.86008499]
[1754593782010,0.8540941,778.39,777.97,0.86008499]
[1754593782313,0.8540941,778.38,777.96,0.86008499]
[1754593782613,0.8540941,778.37,777.97,0.86008499]
[1754593782808,0.85403926,778.36,777.97,0.86008499]
[1754593783013,0.85522709,778.42,777.86,0.86008499]
[1754593783810,0.85522709,778.42,777.85,0.86008499]
[1754593786816,0.895,778.41,777.85,0.86008499]
[1754593790914,0.895,778.41,777.76,0.86008499]
[1754593791113,0.895,778.41,778.02,0.86008499]
[1754593791317,0.895,778.41,778.01,0.86008499]
[1754593791916,0.895,778.41,778.05,0.86008499]
[1754593792319,0.895,778.41,778.04,0.86008499]
[1754593794119,0.895,778.41,778.05,0.86008499]
[1754593794321,0.895,778.41,778.04,0.86008499]
[1754593799227,0.895,778.41,778.03,0.86008499]
[1754593799828,0.85522709,778.42,778.03,0.86008499]
[1754593800028,0.85522709,778.42,778.04,0.86008499]
[1754593800825,0.85522709,778.42,777.34,0.22363098]
[1754593800826,0.85522709,778.42,778.05,0.86008499]
[1754593801026,0.85522709,778.42,777.34,0.22363098]
[1754593801027,0.85522709,778.42,778.08,0.86008499]
[1754593801424,0.85522709,778.42,778.07,0.86008499]
[1754593801628,0.85529752,778.41,778.06,0.86008499]
[1754593801931,0.85522709,778.42,778.06,0.86008499]
[1754593802129,0.85544717,778.41,778.06,0.86008499]
[1754593802327,1.093,778.41,778.06,0.86008499]
[1754593803130,0.85559016,778.4,778.06,0.86008499]
[1754593803333,1.093,778.41,778.06,0.86008499]
[1754593803632,0.85556478,778.4,778.06,0.86008499]
[1754593803829,0.85556483,778.39,778.06,0.86008499]
[1754593804029,1.093,778.41,778.07,0.86008499]
[1754593804234,0.85575735,778.4,778.07,0.86008499]
[1754593804429,0.85575735,778.39,778.07,0.86008499]
[1754593804634,1.093,778.41,778.06,0.86008499]
[1754593804829,0.85573356,778.4,778.06,0.86008499]
[1754593805033,0.85573356,778.39,778.06,0.86008499]
[1754593805230,0.85573356,778.38,778.06,0.86008499]
[1754593805530,1.093,778.41,778.07,0.86008499]
[1754593805733,0.85592965,778.4,778.07,0.86008499]
[1754593805935,0.85592965,778.39,778.07,0.86008499]
[1754593806132,0.85592965,778.38,778.07,0.86008499]
[1754593806336,0.85592965,778.37,778.07,0.86008499]
[1754593806535,0.85592965,778.36,778.07,0.86008499]
[1754593806737,1.093,778.41,778.07,0.86008499]
[1754593807037,0.85616461,778.4,778.07,0.86008499]
[1754593807237,0.85616461,778.39,778.07,0.86008499]
[1754593807437,1.093,778.41,778.07,0.86008499]
[1754593807438,0.85616461,778.38,778.07,0.86008499]
[1754593807733,0.85616461,778.37,778.07,0.86008499]
[1754593807936,0.85616461,778.36,778.07,0.86008499]
[1754593808236,1.093,778.41,778.07,0.86008499]
[1754593808437,0.85624849,778.4,778.07,0.86008499]
[1754593808739,0.85624849,778.39,778.07,0.86008499]
[1754593808937,0.85624849,778.38,778.07,0.86008499]
[1754593809133,0.85624849,778.37,778.07,0.86008499]
[1754593809334,1.093,778.41,778.05,0.86008499]
[1754593809538,0.85628398,778.4,778.05,0.86008499]
[1754593809838,0.85628398,778.39,778.05,0.86008499]
[1754593810138,0.85628398,778.38,778.05,0.86008499]
[1754593810337,0.85628398,778.37,778.05,0.86008499]
[1754593810635,1.093,778.41,778.05,0.86008499]
[1754593810833,0.85632421,778.4,778.06,0.86008499]
[1754593811034,0.85632421,778.39,778.06,0.86008499]
[1754593811338,0.85632421,778.38,778.06,0.86008499]
[1754593811635,0.85632421,778.37,778.06,0.86008499]
[1754593811838,1.093,778.41,778.06,0.86008499]
[1754593812036,0.85637668,778.4,778.06,0.86008499]
[1754593812235,0.85637668,778.39,778.06,0.86008499]
[1754593812435,1.093,778.41,778.05,0.86008499]
[1754593812637,0.8564383,778.4,778.08,0.86008499]
[1754593812836,0.8564383,778.39,778.08,0.86008499]
[1754593813040,1.093,778.41,778.08,0.86008499]
[1754593813240,0.85651115,778.4,778.08,0.86008499]
[1754593813438,0.85651115,778.39,778.08,0.86008499]
[1754593813741,1.093,778.41,778.08,0.86008499]
[1754593814040,0.85649995,778.4,778.08,0.86008499]
[1754593814239,0.85649995,778.39,778.08,0.86008499]
[1754593814436,1.093,778.41,778.08,0.86008499]
[1754593814636,0.8565785,778.4,778.08,0.86008499]
[1754593814837,1.093,778.41,778.08,0.86008499]
[1754593815141,0.85657099,778.4,778.08,0.86008499]
[1754593815340,0.85657099,778.39,778.08,0.86008499]
[1754593815538,1.093,778.41,778.08,0.86008499]
[1754593815742,0.85665644,778.4,778.08,0.86008499]
[1754593816041,0.85676051,778.39,778.08,0.86008499]
[1754593816341,1.093,778.41,778.08,0.86008499]
[1754593816637,0.85674277,778.4,778.08,0.86008499]
[1754593816837,0.85674277,778.39,778.08,0.86008499]
[1754593817039,1.093,778.41,778.08,0.86008499]
[1754593817237,0.85674986,778.4,778.08,0.86008499]
[1754593817444,0.85674986,778.39,778.08,0.86008499]
[1754593817643,1.093,778.41,778.08,0.86008499]
[1754593817844,0.85673745,778.4,778.06,0.86008499]
[1754593818143,0.85673745,778.39,778.07,0.86008499]
[1754593818440,1.093,778.41,778.06,0.86008499]
[1754593818641,1.093,778.41,777.99,0.86008499]
[1754593821343,1.093,778.41,778.0,0.86008499]
[1754593822141,1.093,778.41,778.01,0.86008499]
[1754593823342,1.093,778.41,778.02,0.86008499]
[1754593828543,0.85693572,778.4,778.08,0.86008499]
[1754593828844,0.85693572,778.39,778.08,0.86008499]
[1754593829042,0.85693572,778.38,778.08,0.86008499]